fUST/lending_fUST_20250825
["ID","MTS","AMOUNT","RATE_DAILY","PERIOD"]
[381307000,1756132251570,-235.31036443,0.00041095,30]
[381307002,1756132251579,-480.0,0.00041095,30]
[381307004,1756132251588,-563.65,0.00041095,30]
[381307006,1756132251597,-646.73,0.00041095,30]
[381307008,1756132251607,-480.0,0.00041095,30]
[381307011,1756132251616,-480.0,0.00041095,7]
[381307013,1756132251625,-480.0,0.00041095,30]
[381307015,1756132251635,-1170.18,0.00041095,30]
[381307017,1756132251645,-480.0,0.00041095,30]
[381307019,1756132251655,-482.36,0.00041095,30]
[381307021,1756132251664,-480.0,0.00041095,30]
[381307023,1756132251673,-496.57,0.00041095,30]
[381307025,1756132251683,-487.66,0.00041095,30]
[381307027,1756132251692,-480.0,0.00041095,30]
[381307029,1756132251702,-480.0,0.00041095,30]
[381307031,1756132251711,-480.0,0.00041095,30]
[381307033,1756132251721,-1683.93,0.00041095,30]
[381307035,1756132251730,-480.0,0.00041095,30]
[381307037,1756132251740,-480.0,0.00041095,30]
[381307039,1756132251750,-901.29,0.00041095,30]
[381307041,1756132251759,-480.0,0.00041095,30]
[381307043,1756132251769,-825.61,0.00041095,30]
[381307045,1756132251778,-480.0,0.00041095,2]
[381307047,1756132251789,-480.0,0.00041095,30]
[381307049,1756132251797,-151.0,0.00041095,15]
[381307051,1756132251807,-766.68,0.00041095,30]
[381307053,1756132251816,-151.0,0.00041095,15]
[381307055,1756132251826,-151.0,0.00041095,15]
[381307057,1756132251835,-480.0,0.00041095,30]
[381307059,1756132251844,-151.0,0.00041095,15]
[381307061,1756132251854,-151.0,0.00041095,15]
[381307063,1756132251863,-480.0,0.00041095,30]
[381307065,1756132251872,-151.0,0.00041095,15]
[381307067,1756132251882,-480.0,0.00041095,30]
[381307069,1756132251891,-151.0,0.00041095,15]
[381307071,1756132251901,-151.0,0.00041095,15]
[381307073,1756132251910,-1028.95,0.00041095,30]
[381307075,1756132251920,-274.939748,0.00041095,15]
[381307077,1756132251929,-696.24,0.00041095,30]
[381307079,1756132251938,-151.0,0.00041095,30]
[381307081,1756132251948,-151.0,0.00041095,30]
[381307083,1756132251957,-151.0,0.00041095,30]
[381307085,1756132251967,-151.0,0.00041095,30]
[381307087,1756132251976,-151.0,0.00041095,30]
[381307088,1756132251987,-670.8,0.00041095,30]
[381307089,1756132251996,-1220.28,0.00041095,30]
[381307090,1756132252005,-920.67,0.00041095,30]
[381307091,1756132252015,-480.0,0.00041095,30]
[381307092,1756132252025,-480.0,0.00041095,30]
[381307093,1756132252034,-408.80838135,0.00041095,30]
[381307094,1756132252044,-480.0,0.00041095,30]
[381307095,1756132252054,-505.82,0.00041095,30]
[381307096,1756132252063,-480.0,0.00041095,30]
[381307097,1756132252073,-1344.67,0.00041095,30]
[381307098,1756132252083,-480.0,0.00041095,30]
[381307099,1756132252093,-480.0,0.00041095,30]
[381307100,1756132252102,-480.0,0.00041095,30]
[381307101,1756132252111,-480.0,0.00041095,30]
[381307102,1756132252121,-480.0,0.00041095,30]
[381307104,1756132252131,-616.02,0.00041095,30]
[381307106,1756132252140,-2073.24,0.00041095,30]
[381307108,1756132252150,-960.62,0.00041095,30]
[381307110,1756132252159,-1355.01,0.00041095,30]
[381307112,1756132252169,-480.0,0.00041095,30]
[381307114,1756132252179,-856.6,0.00041095,30]
[381307116,1756132252188,-1120.37,0.00041095,30]
[381307118,1756132252198,-480.0,0.00041095,30]
[381307120,1756132252207,-480.0,0.00041095,30]
[381307122,1756132252218,-687.3,0.00041095,30]
[381307124,1756132252227,-664.46,0.00041095,30]
[381307126,1756132252238,-480.0,0.00041095,30]
[381307128,1756132252248,-563.53,0.00041095,30]
[381307130,1756132252257,-997.45,0.00041095,30]
[381307132,1756132252268,-2182.01,0.00041095,30]
[381307134,1756132252278,-2182.01,0.00041095,30]
[381307136,1756132252287,-2182.01,0.00041095,30]
[381307138,1756132252297,-2182.01,0.00041095,30]
[381307140,1756132252307,-2182.01,0.00041095,30]
[381307142,1756132252317,-151.0,0.00041095,30]
[381307144,1756132252327,-2182.01,0.00041095,30]
[381307146,1756132252336,-480.0,0.00041095,30]
[381307147,1756132252346,-151.0,0.00041095,30]
[381307149,1756132252355,-2182.01,0.00041095,30]
[381307151,1756132252366,-151.0,0.00041095,30]
[381307153,1756132252376,-2182.01,0.00041095,30]
[381307155,1756132252386,-151.0,0.00041095,30]
[381307157,1756132252395,-2182.01,0.00041095,30]
[381307159,1756132252405,-151.0,0.00041095,30]
[381307161,1756132252415,-151.0,0.00041095,30]
[381307163,1756132252425,-2182.01,0.00041095,30]
[381307165,1756132252435,-151.0,0.00041095,30]
[381307167,1756132252444,-151.0,0.00041095,30]
[381307169,1756132252454,-2182.01,0.00041095,30]
[381307171,1756132252463,-151.0,0.00041095,30]
[381307173,1756132252473,-151.0,0.00041095,30]
[381307175,1756132252484,-2182.01,0.00041095,30]
[381307177,1756132252495,-151.0,0.00041095,30]
[381307179,1756132252504,-2182.01,0.00041095,30]
[381307181,1756132252513,-151.0,0.00041095,30]
[381307183,1756132252523,-3703.42,0.00041095,30]
[381307185,1756132252534,-2182.01,0.00041095,30]
[381307187,1756132252546,-151.0,0.00041095,30]
[381307189,1756132252557,-2182.01,0.00041095,30]
[381307191,1756132252568,-151.0,0.00041095,30]
[381307193,1756132252577,-151.0,0.00041095,30]
[381307195,1756132252587,-2182.01,0.00041095,30]
[381307197,1756132252596,-151.0,0.00041095,30]
[381307199,1756132252606,-151.0,0.00041095,30]
[381307202,1756132252618,-2182.01,0.00041095,30]
[381307204,1756132252629,-151.0,0.00041095,30]
[381307206,1756132252638,-151.0,0.00041095,30]
[381307208,1756132252649,-2182.01,0.00041095,30]
[381307210,1756132252659,-151.0,0.00041095,30]
[381307212,1756132252668,-151.0,0.00041095,30]
[381307213,1756132252678,-2182.01,0.00041095,30]
[381307215,1756132252687,-151.0,0.00041095,30]
[381307217,1756132252696,-151.0,0.00041095,30]
[381307219,1756132252705,-480.0,0.00041095,30]
[381307221,1756132252714,-247.889703,0.00041095,30]
[381307223,1756132252724,-151.0,0.00041095,30]
[381307225,1756132252734,-151.0,0.00041095,30]
[381307227,1756132252744,-151.0,0.00041095,30]
[381307229,1756132252753,-151.0,0.00041095,30]
[381307231,1756132252763,-151.0,0.00041095,30]
[381307233,1756132252773,-624.32,0.00041095,30]
[381307235,1756132252782,-480.0,0.00041095,30]
[381307237,1756132252791,-151.0,0.00041095,30]
[381307239,1756132252800,-151.0,0.00041095,30]
[381307241,1756132252810,-587.41244561,0.00041095,30]
[381307243,1756132252819,-287.395158,0.00041095,30]
[381307245,1756132252828,-936.4,0.00041095,30]
[381307247,1756132252838,-480.0,0.00041095,30]
[381307249,1756132252848,-283.741622,0.00041095,30]
[381307251,1756132252858,-480.0,0.00041095,30]
[381307253,1756132252867,-480.0,0.00041095,30]
[381307255,1756132252876,-1243.9,0.00041095,30]
[381307257,1756132252885,-151.0,0.00041095,30]
[381307259,1756132252894,-151.0,0.00041095,30]
[381307261,1756132252903,-151.0,0.00041095,30]
[381307262,1756132252913,-480.0,0.00041095,30]
[381307264,1756132252923,-151.0,0.00041095,30]
[381307266,1756132252932,-151.0,0.00041095,30]
[381307268,1756132252941,-151.0,0.00041095,30]
[381307270,1756132252951,-480.0,0.00041095,30]
[381307272,1756132252961,-1474.19,0.00041095,30]
[381307274,1756132252971,-3693.71,0.00041095,30]
[381307276,1756132252981,-2211.04,0.00041095,30]
[381307278,1756132252992,-1000.0,0.00041095,30]
[381307280,1756132253001,-1606.4,0.00041095,30]
[381307282,1756132253011,-480.0,0.00041095,30]
[381307284,1756132253021,-480.0,0.00041095,30]
[381307286,1756132253030,-480.0,0.00041095,30]
[381307288,1756132253040,-480.0,0.00041095,30]
[381307290,1756132253050,-480.0,0.00041095,30]
[381307292,1756132253059,-552.86,0.00041095,30]
[381307294,1756132253069,-574.4588584,0.00041095,30]
[381307296,1756132253079,-513.65899585,0.00041095,30]
[381307298,1756132253089,-480.0,0.00041095,30]
[381307300,1756132253098,-480.0,0.00041095,30]
[381307302,1756132253107,-480.0,0.00041095,30]
[381307304,1756132253117,-480.0,0.00041095,30]
[381307306,1756132253127,-784.62,0.00041095,30]
[381307308,1756132253136,-510.03980501,0.00041095,30]
[381307310,1756132253146,-480.0,0.00041095,30]
[381307312,1756132253155,-573.11,0.00041095,30]
[381307314,1756132253164,-480.0,0.00041095,30]
[381307316,1756132253174,-1731.0,0.00041095,30]
[381307318,1756132253183,-1154.68,0.00041095,30]
[381307320,1756132253193,-2711.98,0.00041095,30]
[381307322,1756132253202,-540.81,0.00041095,30]
[381307324,1756132253220,-480.0,0.00041095,30]
[381307326,1756132253232,-791.67,0.00041095,30]
[381307328,1756132253243,-1262.67,0.00041095,30]
[381307330,1756132253253,-1022.88,0.00041095,30]
[381307332,1756132253263,-480.0,0.00041095,30]
[381307334,1756132253272,-2474.12,0.00041095,30]
[381307354,1756132253455,-480.0,0.00041095,30]
[381307357,1756132253466,-480.0,0.00041095,7]
[381307359,1756132253476,-480.0,0.00041095,30]
[381307360,1756132253492,-1134.16,0.00041095,30]
[381307362,1756132253502,-480.0,0.00041095,30]
[381307364,1756132253511,-815.47,0.00041095,30]
[381307366,1756132253520,-480.0,0.00041095,30]
[381307368,1756132253530,-557.41,0.00041095,30]
[381307370,1756132253539,-480.0,0.00041095,30]
[381307372,1756132253549,-574.58,0.00041095,30]
[381307374,1756132253561,-1505.69,0.00041095,30]
[381307376,1756132253571,-640.19336028,0.00041095,30]
[381307429,1756132254069,-479.02663972,0.00041095,30]
[381307431,1756132254078,-480.0,0.00041095,30]
[381307433,1756132254087,-1297.17,0.00041095,30]
[381307435,1756132254097,-82.79074229,0.00041095,30]
[381307451,1756132254442,199.0,0.00026749,20]
[381307602,1756132256072,160.16243712,0.00031234,2]
[381307605,1756132256098,500.0,0.00031234,2]
[381307630,1756132256329,500.0,0.00031234,2]
[381307635,1756132256368,500.0,0.00031234,2]
[381307641,1756132256423,500.0,0.00031234,2]
[381307646,1756132256454,500.0,0.00031234,2]
[381307652,1756132256514,528.61458115,0.00031234,2]
[381307656,1756132256542,500.0,0.00031234,2]
[381307660,1756132256569,500.0,0.00031234,2]
[381307663,1756132256595,500.0,0.00031234,2]
[381307667,1756132256624,259.1716942,0.00035616,7]
[381307678,1756132256720,250.0,0.00031234,2]
[381307792,1756132257948,12701.40788335,0.00034368,2]
[381307887,1756132258830,199.0,0.00026749,20]
[381308697,1756132274312,529.29072822,0.00034319,2]
[381308698,1756132279905,217.12848614,0.00034319,2]
[381308701,1756132328728,7486.0,0.00031234,60]
[381308702,1756132342696,203.84787914,0.00026706,2]
[381308703,1756132344785,288.66726984,0.000199,2]
[381308704,1756132344901,288.66726956,0.00021627,2]
[381308705,1756132345142,288.66726956,0.00023353,2]
[381308706,1756132345264,288.66726956,0.0002508,2]
[381308707,1756132345389,288.66726956,0.00026806,6]
[381308708,1756132345525,288.66726956,0.00028533,10]
[381308709,1756132345961,288.66726956,0.00030259,13]
[381308711,1756132346103,288.66726956,0.00031986,17]
[381308712,1756132346263,288.66726956,0.00033712,21]
[381308713,1756132346360,288.66726956,0.00035439,24]
[381308715,1756132385144,592.0,0.00025865,2]
[381308716,1756132532324,206.19090706,0.000199,2]
[381308717,1756132532534,206.19090682,0.00021754,2]
[381308718,1756132532721,206.19090682,0.00023609,2]
[381308719,1756132532866,206.19090682,0.00025463,3]
[381308720,1756132548821,3953.99170861,0.000259,2]
[381308721,1756132548844,1046.00829139,0.000259,2]
[381308722,1756132568972,3529.62935848,0.000259,2]
[381308723,1756132586198,2566.73212291,0.000259,2]
[381308724,1756132726657,213.46610132,0.000199,2]
[381308725,1756132726828,213.46610122,0.00021627,2]
[381308726,1756132726943,213.46610122,0.00023353,2]
[381308727,1756132727094,213.46610122,0.0002508,2]
[381308729,1756132844654,163.130466,0.00013699,2]
[381308730,1756132926787,205.43855557,0.000199,2]
[381308731,1756132926933,205.43855546,0.00021826,2]
[381308732,1756132927066,205.43855546,0.00023752,2]
[381308733,1756132927204,205.43855546,0.00025677,3]
[381308734,1756133029197,384.336238,0.00025778,2]
[381308735,1756133029887,-269.93522114,0.00026044,2]
[381308736,1756133036854,-2.86811535,0.00026044,2]
[381308737,1756133114415,208.12050223,0.000199,2]
[381308738,1756133114609,208.12050212,0.00022077,2]
[381308739,1756133114777,208.12050212,0.00024254,2]
[381308741,1756133250141,-208.12050212,0.00026431,5]
[381308742,1756133250170,-208.12050212,0.00028608,10]
[381308743,1756133250190,-800.0,0.0003,2]
[381308744,1756133250218,-208.12050212,0.00030785,14]
[381308745,1756133250238,-158.0,0.00031,120]
[381308746,1756133250259,-800.0,0.00031,3]
[381308747,1756133250279,-970.0,0.00032,4]
[381308748,1756133250306,-208.12050212,0.00032962,19]
[381308749,1756133250326,-354.0,0.00034367,2]
[381308750,1756133250347,-1600.0,0.00034367,3]
[381308751,1756133250367,-1383.99468245,0.00034368,2]
[381308752,1756133250386,-160.0,0.00034368,2]
[381308753,1756133250415,-208.12050212,0.00035139,24]
[381308754,1756133250436,-341.5231711,0.00035312,2]
[381308755,1756133250457,-5732.5895922,0.0003549,33]
[381308756,1756133250478,-1270.9661452,0.00035594,2]
[381308757,1756133250499,-387.2256533,0.00036523,30]
[381308758,1756133250518,-454.6841018,0.0003666,30]
[381308759,1756133250538,-158.0,0.000372,120]
[381308760,1756133250560,-199.0,0.00037282,30]
[381308761,1756133250587,-208.12050212,0.00037316,28]
[381308762,1756133250608,-199.0,0.00037382,30]
[381308763,1756133250627,-588.372552,0.00037505,30]
[381308764,1756133250650,-153.0,0.00037505,30]
[381308765,1756133250671,-158.6050438,0.00037505,30]
[381308766,1756133250691,-153.0,0.00037505,30]
[381308767,1756133250712,-153.0,0.00037505,30]
[381308768,1756133250732,-361.38552137,0.00038,120]
[381308769,1756133250755,-481.60135521,0.00038081,7]
[381308770,1756133252122,-160.0,0.00034367,2]
[381308771,1756133252144,-121.66694924,0.00038081,7]
[381308772,1756133254145,-896.73169555,0.00038081,7]
[381308773,1756133254171,-1500.0,0.00038903,7]
[381308774,1756133254196,-199.0,0.00039142,30]
[381308775,1756133254227,-208.12050212,0.00039493,33]
[381308776,1756133254250,-521.97459211,0.00039725,7]
[381308778,1756133313697,205.81887681,0.000199,2]
[381308779,1756133313891,205.81887665,0.00022176,2]
[381308780,1756133314075,205.81887665,0.00024452,2]
[381308781,1756133350630,-205.81887665,0.00026728,6]
[381308782,1756133350652,-199.0,0.00028508,10]
[381308783,1756133350679,-205.81887665,0.00029004,11]
[381308784,1756133350700,-199.0,0.000309,120]
[381308785,1756133350726,-205.81887665,0.0003128,15]
[381308786,1756133350752,-205.81887665,0.00033555,20]
[381308787,1756133350780,-2033.14428512,0.00035594,2]
[381308788,1756133350806,-205.81887665,0.00035831,25]
[381308789,1756133350830,-168.0,0.0003662,2]
[381308790,1756133355436,199.0,0.00036155,120]
[381308791,1756133428758,167.0,0.00032564,120]
[381308797,1756133431976,-158.6,0.00036255,120]
[381308798,1756133431986,-195.19393509,0.00037505,30]
[381308799,1756133431997,-60.53671941,0.00037505,30]
[381308800,1756133432007,-153.0,0.00037505,30]
[381308801,1756133432016,-321.8774329,0.00037505,30]
[381308802,1756133432025,-1400.0,0.00038081,7]
[381308803,1756133432035,-168.0,0.00038083,2]
[381308804,1756133432044,-205.81887665,0.00038107,30]
[381308805,1756133432054,-168.0,0.00038125,2]
[381308806,1756133432064,-1232.88415507,0.00038903,7]
[381308807,1756133432084,-167.11584493,0.00038903,7]
[381308808,1756133432095,-794.82779778,0.00039451,120]
[381308809,1756133432105,-1400.0,0.00039725,7]
[381308810,1756133432114,-168.0,0.00039742,7]
[381308812,1756133432123,-168.0,0.0003982,2]
[381308814,1756133432133,-168.0,0.00039989,2]
[381308816,1756133432142,-168.0,0.00040139,2]
[381308818,1756133432151,-205.81887665,0.00040383,35]
[381308820,1756133432161,-387.2256533,0.00040411,30]
[381308822,1756133432171,-1400.0,0.00040547,7]
[381308824,1756133432180,-160.0,0.0004063,2]
[381308827,1756133432190,-376.30788339,0.0004063,2]
[381308829,1756133432211,-232.4766599,0.00040633,2]
[381308831,1756133432222,-160.0,0.00040633,2]
[381308832,1756133432231,-529.29072822,0.00040633,2]
[381308833,1756133432242,-160.0,0.00040633,2]
[381308834,1756133432252,-160.0,0.00040633,2]
[381308835,1756133432262,-217.12848614,0.00040633,2]
[381308837,1756133432272,-216.04034502,0.00040633,2]
[381308838,1756133432282,-160.0,0.00040633,2]
[381308839,1756133432292,-973.0,0.00040687,2]
[381308840,1756133432302,-409.0,0.00040687,2]
[381308841,1756133432313,-1276.2732634,0.00040687,2]
[381308934,1756133438885,-369.53630997,0.00039989,2]
[381308935,1756133438936,-985.89321345,0.00039989,2]
[381308936,1756133438945,-500.0,0.00040546,14]
[381308937,1756133438955,-844.86965257,0.0004063,2]
[381308938,1756133438964,-160.0,0.0004063,2]
[381308939,1756133438973,-1355.42952342,0.00040633,2]
[381308940,1756133438983,-878.7267366,0.00040687,2]
[381308941,1756133438992,-637.0,0.00040687,2]
[381308942,1756133439001,-201.0,0.0004073,55]
[381308943,1756133439010,-196.52783031,0.00040745,7]
[381308944,1756133439019,-800.0,0.00040752,7]
[381308945,1756133439028,-800.0,0.00040755,7]
[381308946,1756133439039,-603.47216969,0.00040755,7]
[381308947,1756133439048,-263.26646414,0.00040794,7]
[381308948,1756133439057,-800.0,0.00040794,7]
[381308949,1756133439066,-800.0,0.00040797,7]
[381308950,1756133439077,-800.0,0.00040807,7]
[381308951,1756133439086,-691.15720904,0.0004081,28]
[381308952,1756133439097,-800.0,0.00040811,7]
[381308953,1756133439106,-500.0,0.0004082,14]
[381308954,1756133439115,-800.0,0.00040835,7]
[381308955,1756133439125,-264.96230179,0.00040874,7]
[381308956,1756133439134,-800.0,0.00040875,7]
[381308957,1756133439143,-800.0,0.00040878,7]
[381308958,1756133439152,-497.67019775,0.00040887,7]
[381308959,1756133439217,-31.29632769,0.00040887,7]
[381309577,1756133446201,-677.71476171,0.00040687,2]
[381309603,1756133446435,-199.0,0.00040794,120]
[381309605,1756133446445,-7.76701042,0.00040887,7]
[381309607,1756133446455,-199.0,0.00040894,120]
[381309609,1756133446465,-303.78736328,0.00040898,2]
[381309611,1756133446475,-642.36095694,0.00040898,2]
[381313370,1756133500009,210.76718688,0.000199,2]
[381313371,1756133500155,210.76718684,0.00023029,2]
[381313372,1756133500278,210.76718684,0.00026159,4]
[381313373,1756133500544,210.76718684,0.00029288,11]
[381313374,1756133500625,194.21293952,0.00032418,18]
[381313375,1756133500654,16.55424732,0.00032418,18]
[381313376,1756133500763,210.76718684,0.00035547,25]
[381313389,1756133541936,781.76689209,0.0002605,7]
[381313393,1756133669024,210.76718684,0.000199,2]
[381313394,1756133669114,210.76718684,0.00024907,2]
[381313395,1756133676646,152.0,0.000269,7]
[381313413,1756133845278,163.130466,0.00013699,2]
[381313414,1756133859043,210.74519007,0.000199,2]
[381313415,1756133859187,210.74519005,0.00026159,4]
[381313418,1756134046773,213.54506695,0.000199,2]
[381313420,1756134184779,482964.0,0.00031202,60]
[381313423,1756134230634,172.045976,0.00025778,2]
[381313424,1756134232287,220.0781417,0.000199,2]
[381313426,1756134411366,220.07814166,0.000199,2]
[381313427,1756134436105,-155.19,0.00028472,15]
[381313428,1756134436136,-220.07814166,0.00032418,18]
[381313429,1756134436156,-40.60650675,0.00036833,2]
[381313430,1756134442433,-205.62468826,0.00036833,2]
[381313431,1756134453093,-145.66907634,0.00036833,2]
[381313432,1756134453117,-2138.51680812,0.00036866,2]
[381313435,1756134549605,-1162.45510988,0.00036866,2]
[381313436,1756134584638,220.07814166,0.000199,2]
[381313460,1756134632153,-500.0,0.00037386,5]
[381313462,1756134632164,-19.93219999,0.00038081,7]
[381313463,1756134632176,-1680.06780001,0.00038081,7]
[381313464,1756134632186,-4.61153738,0.00038629,2]
[381313465,1756134632200,-968.38846262,0.00038629,2]
[381313466,1756134632209,-1333.82179602,0.00038629,2]
[381313500,1756134638050,-821.17820398,0.00038629,2]
[381313502,1756134638060,-326.8416981,0.00038629,2]
[381313592,1756134640158,-310.1583019,0.00038629,2]
[381313594,1756134640169,-159.0,0.000389,33]
[381313596,1756134640178,-1700.0,0.00038903,7]
[381313598,1756134640188,-212.75672068,0.00039354,5]
[381313841,1756134643294,-287.24327932,0.00039354,5]
[381313843,1756134643303,-1132.81565113,0.00039725,7]
[381314183,1756134646696,-567.18434887,0.00039725,7]
[381314185,1756134646706,-159.0,0.0004,90]
[381314187,1756134646716,-159.0,0.0004,60]
[381314189,1756134646726,-159.0,0.0004,45]
[381314192,1756134646735,-159.0,0.0004,20]
[381314193,1756134646745,-1130.646145,0.00040032,2]
[381314196,1756134646758,-26766.59897627,0.00040032,2]
[381316256,1756134762494,220.07814166,0.000199,2]
[381316258,1756134858180,451.89770887,0.00025205,30]
[381316259,1756134864449,163.130466,0.00013699,2]
[381316260,1756134938361,217.8186444,0.000199,2]
[381316261,1756134969470,-925.0,0.00032887,120]
[381316262,1756134969499,-555.0,0.00032887,120]
[381316263,1756134969529,-925.0,0.00034531,120]
[381316264,1756134969761,-555.0,0.00034531,120]
[381316266,1756135203749,1157.34380351,0.0003536,7]
[381316267,1756135238263,333.0,0.00032861,120]
[381316268,1756135239586,333.0,0.00034504,120]
[381316269,1756135432679,238.112248,0.00025778,2]
[381316270,1756135433025,234.8031689,0.00026044,2]
[381316271,1756135471716,300.0,0.00035068,2]
[381316272,1756135499656,300.0,0.00035342,2]
[381316273,1756135519357,496.9,0.00035342,2]
[381316274,1756135534554,199.0,0.00032837,120]
[381316275,1756135536316,199.0,0.00034479,120]
[381316276,1756135541177,-199.0,0.00036158,120]
[381316277,1756135541198,-199.0,0.00036203,120]
[381316278,1756135541219,-333.0,0.00036229,120]
[381316279,1756135541243,-302.9072528,0.00036238,2]
[381316280,1756135541264,-634.51498798,0.00036258,120]
[381316281,1756135632101,-199.0,0.00036058,120]
[381316282,1756135632124,-290.48501202,0.00036258,120]
[381316283,1756135632147,-153.28152644,0.00036258,120]
[381316284,1756135643103,-199.0,0.00036158,120]
[381316285,1756135643126,-401.71847356,0.00036258,120]
[381316286,1756135643148,-199.0,0.00038013,120]
[381316287,1756135643170,-333.0,0.0003804,120]
[381316288,1756135643191,-925.0,0.00038071,120]
[381316289,1756135643213,-555.0,0.00038071,120]
[381316290,1756135643235,-237.41116669,0.00038081,7]
[381316291,1756135644102,-962.58883331,0.00038081,7]
[381316292,1756135644123,-109.67497242,0.00038903,7]
[381316295,1756135684048,-1090.32502758,0.00038903,7]
[381316299,1756135695948,302.25116183,0.00038,2]
[381316301,1756135715895,1470.23377637,0.00029998,120]
[381316302,1756135718700,592.68576363,0.00025,2]
[381316303,1756135722887,454.17924301,0.00026,30]
[381316304,1756135722911,5000.0,0.00026,30]
[381316305,1756135722934,242.63344599,0.00026,30]
[381316306,1756135723516,4757.36655401,0.00029,120]
[381316307,1756135723539,5000.0,0.00029,120]
[381316308,1756135723564,5000.0,0.00029,120]
[381316309,1756135723587,5000.0,0.00029,120]
[381316310,1756135723609,5000.0,0.00029,120]
[381316311,1756135723632,5000.0,0.00029,120]
[381316312,1756135723656,695.63466622,0.00029,120]
[381316313,1756135724233,177.111748,0.00031182,120]
[381316315,1756135727770,151.62206598,0.00035,120]
[381316316,1756135728829,4152.7432678,0.0002,2]
[381316317,1756135728853,5000.0,0.0002,2]
[381316318,1756135728876,93.29903575,0.0002,2]
[381316319,1756135772275,216.04034502,0.00031182,2]
[381316320,1756135798034,900.0,0.00038081,7]
[381316321,1756135801400,210.47271708,0.000199,2]
[381316322,1756135801537,210.47271691,0.00021627,2]
[381316323,1756135801628,900.0,0.00038903,7]
[381316324,1756135801683,210.47271691,0.00023353,2]
[381316325,1756135801871,210.47271691,0.0002508,2]
[381316326,1756135802006,210.47271691,0.00026806,6]
[381316327,1756135802125,210.47271691,0.00028533,10]
[381316328,1756135802244,210.47271691,0.00030259,13]
[381316329,1756135802401,210.47271691,0.00031986,17]
[381316330,1756135802564,210.47271691,0.00033712,21]
[381316331,1756135802701,210.47271691,0.00035439,24]
[381316332,1756135802846,210.47271691,0.00037166,28]
[381316333,1756135802982,210.47271691,0.00038892,32]
[381316334,1756135804369,364.98801614,0.000312,5]
[381316335,1756135804393,135.77273026,0.000312,5]
[381316336,1756135805202,500.0,0.000312,5]
[381316337,1756135805246,500.0,0.000312,5]
[381316338,1756135805293,500.0,0.000312,5]
[381316339,1756135808078,500.0,0.000312,5]
[381316340,1756135808139,408.65597249,0.00031748,5]
[381316341,1756135808807,500.0,0.000312,5]
[381316342,1756135808854,508.33904891,0.00031748,5]
[381316343,1756135810000,500.0,0.00031748,5]
[381316344,1756135810092,199.64761663,0.000312,5]
[381316345,1756135810289,500.0,0.000312,5]
[381316346,1756135812702,247.58463171,0.000312,5]
[381316347,1756135812725,252.41536829,0.000312,5]
[381316348,1756135812759,1000.0,0.00031748,5]
[381316349,1756135815809,162.0,0.00031,120]
[381316350,1756135816258,500.67645543,0.000312,5]
[381316351,1756135817287,162.0,0.000378,120]
[381316352,1756135818827,500.0,0.000312,5]
[381316354,1756135832628,-2373.05285303,0.00031182,2]
[381316361,1756135833184,500.0,0.00031181,2]
[381316363,1756135833212,583.94469186,0.00031181,2]
[381316365,1756135833243,500.0,0.00031181,2]